fUST/lending_fUST_20250730
["ID","MTS","AMOUNT","RATE_DAILY","PERIOD"]
[376024153,1753825976296,-151.0,0.0001891,2]
[376024154,1753825976324,-229.00625142,0.0001891,2]
[376024156,1753826134831,1000.0,0.00017904,2]
[376024157,1753826264230,500.0,0.0001752,2]
[376024158,1753826267920,500.0,0.00018616,2]
[376024174,1753826425136,3861.6150135,0.0001791,2]
[376024194,1753826537415,150.0,0.00022269,30]
[376024198,1753826817391,379.118575,0.00013699,2]
[376024264,1753827032462,-152.89351757,0.00018797,2]
[376024265,1753827032472,-154.83559355,0.00018887,2]
[376024266,1753827032482,-300.0,0.00018895,2]
[376024267,1753827032491,-1200.0,0.00018896,2]
[376024268,1753827032500,-160.0,0.00018896,2]
[376024269,1753827032509,-1200.0,0.00018896,2]
[376024270,1753827032519,-3788.83396347,0.00018897,2]
[376024271,1753827032530,-623.03935041,0.00018897,2]
[376024272,1753827032542,-36679.4589432,0.00018897,2]
[376024273,1753827032554,-1053.88504649,0.00018897,2]
[376024274,1753827032565,-712.2497107,0.00018897,2]
[376024275,1753827032577,-2298.64076591,0.00018897,2]
[376024419,1753827038744,-2125.30225648,0.00018897,2]
[376024421,1753827038756,-2718.58996334,0.00018897,2]
[376024423,1753827038765,-460.0,0.00018897,2]
[376024425,1753827038775,-460.0,0.00018897,2]
[376024427,1753827038784,-27.05234229,0.00018897,2]
[376024429,1753827038797,-437.65558481,0.00018897,2]
[376024431,1753827038806,-460.0,0.00018897,2]
[376024433,1753827038815,-460.0,0.00018897,2]
[376024435,1753827038825,-460.0,0.00018897,2]
[376024437,1753827038834,-3530.26,0.00018897,2]
[376024439,1753827038843,-460.0,0.00018897,2]
[376024441,1753827038853,-1759.16,0.00018897,2]
[376024444,1753827038862,-460.0,0.00018897,2]
[376024445,1753827038871,-460.0,0.00018897,2]
[376024448,1753827038881,-460.0,0.00018897,2]
[376024450,1753827038890,-460.0,0.00018897,2]
[376024451,1753827038900,-460.0,0.00018897,2]
[376024453,1753827038909,-318.3240979,0.00018897,2]
[376024455,1753827038918,-1070.1,0.00018897,2]
[376024457,1753827038928,-1469.93,0.00018897,2]
[376024459,1753827038938,-460.0,0.00018897,2]
[376024461,1753827038947,-460.0,0.00018897,2]
[376024463,1753827038956,-460.0,0.00018897,2]
[376024465,1753827038965,-460.0,0.00018897,2]
[376024467,1753827038975,-1552.34,0.00018897,2]
[376024469,1753827038984,-460.0,0.00018897,2]
[376024471,1753827038994,-611.59,0.00018897,2]
[376024473,1753827039003,-2329.0,0.00018897,2]
[376024475,1753827039012,-460.0,0.00018898,2]
[376024477,1753827039022,-460.0,0.00018898,2]
[376024481,1753827039031,-460.0,0.00018898,2]
[376024483,1753827039041,-460.0,0.00018898,2]
[376024485,1753827039050,-460.0,0.00018898,2]
[376024488,1753827039059,-460.0,0.00018898,2]
[376024491,1753827039080,-460.0,0.00018898,2]
[376024494,1753827039089,-460.0,0.00018898,2]
[376024497,1753827039100,-460.0,0.00018898,2]
[376024500,1753827039109,-460.0,0.00018898,2]
[376024503,1753827039122,-460.0,0.00018898,2]
[376024505,1753827039131,-596.36,0.00018898,2]
[376024507,1753827039140,-460.0,0.00018898,2]
[376024509,1753827039149,-460.0,0.00018898,2]
[376024511,1753827039160,-460.0,0.00018898,2]
[376024513,1753827039169,-460.0,0.00018898,2]
[376024515,1753827039179,-460.0,0.00018898,2]
[376024517,1753827039188,-541.16,0.00018898,2]
[376024519,1753827039199,-460.0,0.00018898,2]
[376024521,1753827039209,-460.0,0.00018898,2]
[376024523,1753827039218,-460.0,0.00018898,2]
[376024525,1753827039227,-460.0,0.00018898,2]
[376024527,1753827039236,-460.0,0.00018898,2]
[376024529,1753827039245,-460.0,0.00018898,2]
[376024531,1753827039255,-500.0,0.00018898,2]
[376024533,1753827039264,-523.24,0.00018898,2]
[376024535,1753827039273,-460.0,0.00018898,2]
[376024537,1753827039283,-460.0,0.00018898,2]
[376024538,1753827039292,-500.0,0.00018898,2]
[376024539,1753827039304,-460.0,0.00018898,2]
[376024541,1753827039313,-460.0,0.00018898,2]
[376024543,1753827039322,-621.75,0.00018898,2]
[376024544,1753827039332,-460.0,0.00018898,2]
[376024546,1753827039342,-460.0,0.00018898,2]
[376024548,1753827039352,-460.0,0.00018898,2]
[376024550,1753827039361,-779.68,0.00018898,2]
[376024552,1753827039370,-460.0,0.00018898,2]
[376024554,1753827039379,-460.0,0.00018898,2]
[376024556,1753827039389,-460.0,0.00018898,2]
[376024558,1753827039398,-460.0,0.00018898,2]
[376024560,1753827039408,-460.0,0.00018898,2]
[376024562,1753827039420,-497.69,0.00018898,2]
[376024564,1753827039430,-755.67,0.00018898,2]
[376024566,1753827039439,-460.0,0.00018898,2]
[376024568,1753827039449,-460.0,0.00018898,2]
[376024570,1753827039459,-460.0,0.00018898,2]
[376024572,1753827039468,-460.0,0.00018898,2]
[376024574,1753827039478,-460.0,0.00018898,2]
[376024576,1753827039487,-550.2,0.00018898,2]
[376024578,1753827039497,-460.0,0.00018898,2]
[376024580,1753827039506,-355.0389995,0.00018898,2]
[376024582,1753827039518,-500.0,0.00018898,2]
[376024584,1753827039528,-460.0,0.00018898,2]
[376024586,1753827039537,-460.0,0.00018898,2]
[376024589,1753827039548,-460.0,0.00018898,2]
[376024591,1753827039558,-460.0,0.00018898,2]
[376024593,1753827039567,-460.0,0.00018898,2]
[376024595,1753827039577,-460.0,0.00018898,2]
[376024596,1753827039586,-460.0,0.00018898,2]
[376024599,1753827039595,-460.0,0.00018898,2]
[376024601,1753827039604,-572.88,0.00018898,2]
[376024602,1753827039614,-391.46138829,0.00018898,2]
[376024604,1753827039632,-152.26861171,0.00018898,2]
[376024606,1753827039641,-460.0,0.00018898,2]
[376024608,1753827039651,-460.0,0.00018898,2]
[376024610,1753827039661,-470.29330632,0.00018898,2]
[376024612,1753827039671,-460.0,0.00018898,2]
[376024614,1753827039680,-367.42612044,0.00018898,2]
[376024616,1753827039690,-460.0,0.00018898,2]
[376024618,1753827039699,-460.0,0.00018898,2]
[376024620,1753827039709,-464.3775728,0.00018898,2]
[376024622,1753827039719,-403.36273709,0.00018898,2]
[376024624,1753827039728,-460.0,0.00018898,2]
[376024626,1753827039738,-460.0,0.00018898,2]
[376024628,1753827039747,-460.0,0.00018898,2]
[376024630,1753827039757,-221.12900082,0.00018898,2]
[376024632,1753827039767,-169.76,0.00018898,2]
[376024634,1753827039777,-500.0,0.00018899,2]
[376024636,1753827039786,-150.0,0.000189,2]
[376024637,1753827039795,-460.0,0.00018908,2]
[376024638,1753827039806,-460.0,0.00018908,2]
[376024639,1753827039815,-460.0,0.00018908,2]
[376024640,1753827039824,-460.0,0.00018908,2]
[376024641,1753827039834,-460.0,0.00018908,2]
[376024642,1753827039844,-460.0,0.00018908,2]
[376024643,1753827039853,-460.0,0.00018908,2]
[376024644,1753827039863,-460.0,0.00018908,2]
[376024645,1753827039872,-460.0,0.00018908,2]
[376024646,1753827039881,-460.0,0.00018908,2]
[376024647,1753827039891,-401.89177496,0.00018908,2]
[376024648,1753827039901,-460.0,0.00018908,2]
[376024649,1753827039911,-470.95,0.00018908,2]
[376024650,1753827039921,-460.0,0.00018908,2]
[376024651,1753827039930,-151.0,0.0001891,2]
[376024652,1753827039940,-460.0,0.0001891,2]
[376024653,1753827039950,-460.0,0.0001891,2]
[376024654,1753827039959,-460.0,0.0001891,2]
[376024655,1753827039969,-460.0,0.0001891,2]
[376024656,1753827039978,-460.0,0.0001891,2]
[376024657,1753827039987,-465.8153443,0.0001891,2]
[376024658,1753827039997,-460.0,0.0001891,2]
[376024659,1753827040007,-463.84916918,0.0001891,2]
[376024660,1753827040017,-460.0,0.0001891,2]
[376024661,1753827040027,-460.0,0.0001891,2]
[376024662,1753827040036,-460.0,0.0001891,2]
[376024663,1753827040046,-1499.58747855,0.0001891,2]
[376024664,1753827040056,-460.0,0.0001891,2]
[376024665,1753827040066,-460.0,0.0001891,2]
[376024678,1753827040221,-460.0,0.0001891,2]
[376024680,1753827040230,-460.0,0.0001891,2]
[376024682,1753827040240,-460.0,0.0001891,2]
[376024683,1753827040250,-460.0,0.0001891,2]
[376024685,1753827040260,-460.0,0.0001891,2]
[376024687,1753827040270,-460.0,0.0001891,2]
[376024689,1753827040279,-588.15,0.0001891,2]
[376024691,1753827040288,-1366.57,0.0001891,2]
[376024693,1753827040300,-460.0,0.0001891,2]
[376024695,1753827040310,-4198.76,0.0001891,2]
[376024697,1753827040319,-460.0,0.0001891,2]
[376024699,1753827040328,-1052.65,0.0001891,2]
[376024700,1753827040338,-460.0,0.0001891,2]
[376024701,1753827040348,-460.0,0.0001891,2]
[376024703,1753827040358,-460.0,0.0001891,2]
[376024705,1753827040368,-460.0,0.0001891,2]
[376024707,1753827040377,-1567.84,0.0001891,2]
[376024709,1753827040386,-460.0,0.0001891,2]
[376024711,1753827040396,-151.0,0.00018911,2]
[376024713,1753827040405,-151.0,0.00018912,2]
[376024715,1753827040415,-460.0,0.00018912,2]
[376024717,1753827040424,-1275.89,0.00018912,2]
[376024719,1753827040434,-460.0,0.00018912,2]
[376024721,1753827040443,-774.72,0.00018912,2]
[376024723,1753827040453,-1025.02,0.00018912,2]
[376024725,1753827040462,-1837.8,0.00019161,3]
[376024727,1753827040471,-918.9,0.00019161,3]
[376024729,1753827040481,-459.45,0.00019161,3]
[376024731,1753827040490,-689.21,0.00019161,3]
[376024733,1753827040500,-500.0,0.00019164,2]
[376024735,1753827040509,-460.0,0.00019171,2]
[376024737,1753827040519,-460.0,0.00019171,2]
[376024739,1753827040529,-205.34,0.00019171,2]
[376024741,1753827040538,-460.0,0.00019171,2]
[376024743,1753827040551,-3530.26,0.00019171,2]
[376024745,1753827040560,-460.0,0.00019171,2]
[376024747,1753827040569,-1759.16,0.00019171,2]
[376024748,1753827040579,-460.0,0.00019171,2]
[376024750,1753827040588,-460.0,0.00019171,2]
[376024752,1753827040597,-460.0,0.00019171,2]
[376024754,1753827040607,-1070.1,0.00019171,2]
[376024756,1753827040616,-1469.93,0.00019171,2]
[376024758,1753827040625,-460.0,0.00019171,2]
[376024760,1753827040636,-460.0,0.00019171,2]
[376024762,1753827040646,-460.0,0.00019171,2]
[376024764,1753827040655,-1552.34,0.00019171,2]
[376024766,1753827040665,-460.0,0.00019171,2]
[376024768,1753827040674,-611.59,0.00019171,2]
[376024770,1753827040685,-2329.0,0.00019171,2]
[376024772,1753827040694,-176.11827439,0.00019172,2]
[376024774,1753827040704,-534.1817611,0.00019172,2]
[376024776,1753827040713,-596.36,0.00019172,2]
[376024778,1753827040723,-460.0,0.00019172,2]
[376024780,1753827040732,-460.0,0.00019172,2]
[376024782,1753827040741,-460.0,0.00019172,2]
[376024784,1753827040751,-230.99374858,0.00019172,2]
[376024786,1753827040760,-541.16,0.00019172,2]
[376024788,1753827040769,-460.0,0.00019172,2]
[376024790,1753827040779,-460.0,0.00019172,2]
[376024792,1753827040788,-460.0,0.00019172,2]
[376024794,1753827040800,-621.75,0.00019172,2]
[376024796,1753827040809,-779.68,0.00019172,2]
[376024797,1753827040818,-580.09,0.00019172,2]
[376024799,1753827040828,-460.0,0.00019172,2]
[376024801,1753827040837,-460.0,0.00019172,2]
[376024803,1753827040846,-460.0,0.00019172,2]
[376024805,1753827040855,-460.0,0.00019172,2]
[376024807,1753827040865,-497.69,0.00019172,2]
[376024809,1753827040875,-755.67,0.00019172,2]
[376024811,1753827040884,-460.0,0.00019172,2]
[376024813,1753827040894,-460.0,0.00019172,2]
[376024815,1753827040903,-550.2,0.00019172,2]
[376024817,1753827040912,-460.0,0.00019172,2]
[376024819,1753827040922,-460.0,0.00019172,2]
[376024821,1753827040930,-460.0,0.00019172,2]
[376024823,1753827040940,-460.0,0.00019172,2]
[376024825,1753827040949,-572.88,0.00019172,2]
[376024827,1753827040958,-543.73,0.00019172,2]
[376024829,1753827040968,-460.0,0.00019172,2]
[376024831,1753827040977,-460.0,0.00019172,2]
[376024833,1753827040987,-460.0,0.00019172,2]
[376024835,1753827040997,-229.72,0.00019176,3]
[376024837,1753827041006,-393.706436,0.00019178,2]
[376024839,1753827041015,-666.0,0.00019178,2]
[376024841,1753827041024,-483.72,0.00019182,2]
[376024843,1753827041033,-277.73331554,0.00019182,2]
[376024845,1753827041043,-460.0,0.00019182,2]
[376024847,1753827041056,-151.0,0.00019183,2]
[376024849,1753827041065,-151.0,0.00019183,2]
[376024851,1753827041075,-460.0,0.00019184,2]
[376024853,1753827041085,-588.15,0.00019184,2]
[376024855,1753827041095,-1366.57,0.00019184,2]
[376024857,1753827041104,-438.99704096,0.00019184,2]
[376024859,1753827041115,-4198.76,0.00019184,2]
[376024861,1753827041126,-460.0,0.00019184,2]
[376024863,1753827041136,-1052.65,0.00019184,2]
[376024865,1753827041146,-460.0,0.00019184,2]
[376024867,1753827041157,-460.0,0.00019184,2]
[376024869,1753827041167,-1567.84,0.00019184,2]
[376024872,1753827041176,-460.0,0.00019184,2]
[376024873,1753827041187,-151.0,0.00019185,2]
[376024875,1753827041196,-151.0,0.00019185,2]
[376024877,1753827041206,-460.0,0.00019186,2]
[376024879,1753827041216,-1275.89,0.00019186,2]
[376024881,1753827041225,-460.0,0.00019186,2]
[376024883,1753827041235,-774.72,0.00019186,2]
[376024885,1753827041244,-1025.02,0.00019186,2]
[376024887,1753827041253,-151.0,0.00019187,2]
[376024889,1753827041263,-187.974934,0.00019187,2]
[376024891,1753827041272,-393.26177566,0.00019241,2]
[376024893,1753827041283,-253.78737565,0.00019246,2]
[376024895,1753827041292,-500.0,0.00019246,2]
[376024897,1753827041303,-500.0,0.00019246,2]
[376024899,1753827041313,-500.0,0.00019246,2]
[376024901,1753827041323,-500.0,0.00019246,2]
[376024903,1753827041332,-500.0,0.00019246,2]
[376024905,1753827041341,-230.0,0.00019246,2]
[376024907,1753827041351,-500.0,0.00019246,2]
[376024909,1753827041361,-500.0,0.00019246,2]
[376024911,1753827041370,-318.47641472,0.00019246,2]
[376024913,1753827041380,-500.0,0.00019246,2]
[376024915,1753827041389,-500.0,0.00019246,2]
[376024917,1753827041398,-500.0,0.00019246,2]
[376024919,1753827041409,-500.0,0.00019246,2]
[376024921,1753827041421,-500.0,0.00019246,2]
[376024923,1753827041430,-385.28952637,0.00019246,2]
[376024925,1753827041439,-500.0,0.00019246,2]
[376024927,1753827041449,-500.0,0.00019246,2]
[376024929,1753827041459,-348.32251934,0.00019246,2]
[376024931,1753827041468,-500.0,0.00019246,2]
[376024933,1753827041477,-500.0,0.00019246,2]
[376024935,1753827041486,-346.14432207,0.00019246,2]
[376024937,1753827041495,-500.0,0.00019246,2]
[376024939,1753827041505,-500.0,0.00019246,2]
[376024941,1753827041515,-500.0,0.00019246,2]
[376024943,1753827041524,-500.0,0.00019246,2]
[376024945,1753827041534,-500.0,0.00019246,2]
[376024947,1753827041543,-500.0,0.00019246,2]
[376024949,1753827041554,-500.0,0.00019246,2]
[376024950,1753827041564,-290.04622984,0.00019246,2]
[376024952,1753827041574,-500.0,0.00019246,2]
[376024954,1753827041583,-500.0,0.00019246,2]
[376024956,1753827041592,-500.0,0.00019246,2]
[376024958,1753827041602,-500.0,0.00019246,2]
[376024960,1753827041611,-200.0,0.00019274,15]
[376024962,1753827041621,-200.0,0.00019274,15]
[376024964,1753827041630,-200.0,0.00019274,15]
[376024966,1753827041639,-200.0,0.00019274,15]
[376024968,1753827041649,-25000.0,0.00019341,2]
[376024970,1753827041659,-16945.36049183,0.00019341,2]
[376024972,1753827041668,-151.0,0.00019341,2]
[376024974,1753827041678,-151.0,0.00019341,2]
[376024976,1753827041687,-151.0,0.00019341,2]
[376024978,1753827041696,-151.0,0.00019341,2]
[376024980,1753827041706,-151.0,0.00019341,2]
[376024982,1753827041715,-151.0,0.00019341,2]
[376024984,1753827041725,-151.0,0.00019341,2]
[376024986,1753827041734,-151.0,0.00019341,2]
[376024988,1753827041744,-151.0,0.00019341,2]
[376024990,1753827041753,-151.0,0.00019341,2]
[376024992,1753827041762,-151.0,0.00019341,2]
[376024994,1753827041772,-151.0,0.00019341,2]
[376024996,1753827041781,-151.0,0.00019341,2]
[376024998,1753827041790,-151.0,0.00019341,2]
[376025000,1753827041800,-151.0,0.00019341,2]
[376025002,1753827041809,-151.0,0.00019341,2]
[376025004,1753827041819,-151.0,0.00019341,2]
[376025006,1753827041828,-151.0,0.00019341,2]
[376025008,1753827041838,-151.0,0.00019341,2]
[376025010,1753827041847,-151.0,0.00019341,2]
[376025012,1753827041857,-151.0,0.00019341,2]
[376025014,1753827041867,-2030.296672,0.00019341,2]
[376025016,1753827041877,-151.0,0.00019341,2]
[376025018,1753827041887,-151.0,0.00019341,2]
[376025020,1753827041896,-151.0,0.00019341,2]
[376025022,1753827041906,-270.27902396,0.00019341,2]
[376025024,1753827041916,-151.0,0.00019341,2]
[376025026,1753827041926,-151.0,0.00019341,2]
[376025028,1753827041935,-151.0,0.00019341,2]
[376025030,1753827041945,-151.0,0.00019341,2]
[376025032,1753827041954,-3421.91782557,0.00019345,2]
[376025034,1753827041963,-11959.80431492,0.0001936,2]
[376025036,1753827041977,-1071.305493,0.0001936,2]
[376025038,1753827041988,-3424.75965863,0.0001936,2]
[376025041,1753827041999,-2105.41764886,0.00019396,2]
[376025043,1753827042008,-502.2644397,0.00019408,2]
[376025045,1753827042018,-841.06558547,0.00019417,2]
[376025047,1753827042027,-1433.18313143,0.00019417,2]
[376025049,1753827042038,-3707.92,0.00019417,2]
[376025053,1753827042100,-1136.09,0.0001891,2]
[376025054,1753827042110,-1136.09,0.00019184,2]
[376025055,1753827042123,-7496.02408278,0.00019417,2]
[376025056,1753827042132,-160.0,0.00019417,2]
[376025057,1753827042141,-160.0,0.00019417,2]
[376025058,1753827042151,-526.67226028,0.00019417,2]
[376025059,1753827042162,-216.1031716,0.00019417,2]
[376025060,1753827042171,-231.39372452,0.00019417,2]
[376025061,1753827042181,-214.91980558,0.00019418,2]
[376025062,1753827042190,-312.16666667,0.00019418,2]
[376025063,1753827042200,-160.0,0.00019418,2]
[376025064,1753827042210,-160.0,0.00019418,2]
[376025065,1753827042219,-160.0,0.00019418,2]
[376025066,1753827042228,-460.5085953,0.00019418,2]
[376025067,1753827042238,-160.0,0.00019418,2]
[376025068,1753827042247,-460.0,0.00019445,2]
[376025069,1753827042256,-460.0,0.00019445,2]
[376025070,1753827042265,-3530.26,0.00019445,2]
[376025071,1753827042275,-460.0,0.00019445,2]
[376025072,1753827042284,-1759.16,0.00019445,2]
[376025073,1753827042293,-460.0,0.00019445,2]
[376025074,1753827042303,-460.0,0.00019445,2]
[376025075,1753827042313,-460.0,0.00019445,2]
[376025077,1753827042323,-384.36005395,0.00019445,2]
[376025114,1753827042874,-685.73994605,0.00019445,2]
[376025116,1753827042884,-1469.93,0.00019445,2]
[376025118,1753827042893,-460.0,0.00019445,2]
[376025120,1753827042902,-460.0,0.00019445,2]
[376025122,1753827042912,-460.0,0.00019445,2]
[376025125,1753827042921,-1552.34,0.00019445,2]
[376025127,1753827042931,-460.0,0.00019445,2]
[376025130,1753827042941,-611.59,0.00019445,2]
[376025132,1753827042950,-2329.0,0.00019445,2]
[376025134,1753827042960,-596.36,0.00019446,2]
[376025136,1753827042969,-460.0,0.00019446,2]
[376025138,1753827042978,-460.0,0.00019446,2]
[376025140,1753827042988,-339.98630756,0.00019446,2]
[376025142,1753827042997,-541.16,0.00019446,2]
[376025144,1753827043006,-460.0,0.00019446,2]
[376025146,1753827043015,-460.0,0.00019446,2]
[376025148,1753827043025,-621.75,0.00019446,2]
[376025150,1753827043034,-779.68,0.00019446,2]
[376025151,1753827043043,-460.0,0.00019446,2]
[376025152,1753827043053,-460.0,0.00019446,2]
[376025153,1753827043063,-460.0,0.00019446,2]
[376025154,1753827043072,-497.69,0.00019446,2]
[376025155,1753827043081,-755.67,0.00019446,2]
[376025156,1753827043090,-460.0,0.00019446,2]
[376025157,1753827043099,-460.0,0.00019446,2]
[376025158,1753827043109,-550.2,0.00019446,2]
[376025159,1753827043121,-460.0,0.00019446,2]
[376025160,1753827043131,-460.0,0.00019446,2]
[376025161,1753827043140,-460.0,0.00019446,2]
[376025162,1753827043149,-572.88,0.00019446,2]
[376025163,1753827043158,-543.73,0.00019446,2]
[376025164,1753827043170,-460.0,0.00019446,2]
[376025165,1753827043180,-460.0,0.00019446,2]
[376025166,1753827043189,-460.0,0.00019446,2]
[376025167,1753827043201,-151.0,0.00019447,2]
[376025168,1753827043212,-2183.31810187,0.00019451,2]
[376025169,1753827043221,-460.0,0.00019458,2]
[376025170,1753827043231,-588.15,0.00019458,2]
[376025171,1753827043240,-1366.57,0.00019458,2]
[376025172,1753827043249,-4198.76,0.00019458,2]
[376025173,1753827043259,-1052.65,0.00019458,2]
[376025174,1753827043269,-460.0,0.00019458,2]
[376025175,1753827043279,-460.0,0.00019458,2]
[376025176,1753827043290,-1567.84,0.00019458,2]
[376025177,1753827043300,-1136.09,0.00019458,2]
[376025178,1753827043309,-151.0,0.00019459,2]
[376025179,1753827043319,-1275.89,0.0001946,2]
[376025180,1753827043328,-460.0,0.0001946,2]
[376025181,1753827043338,-774.72,0.0001946,2]
[376025182,1753827043347,-1025.02,0.0001946,2]
[376025183,1753827043356,-151.0,0.00019461,2]
[376025184,1753827043365,-500.0,0.00019481,2]
[376025185,1753827043374,-536.11900982,0.00019484,2]
[376025186,1753827043384,-2264.10087164,0.00019506,2]
[376025187,1753827043394,-500.0,0.00019508,2]
[376025188,1753827043403,-500.0,0.00019508,2]
[376025189,1753827043413,-500.0,0.00019508,2]
[376025190,1753827043423,-500.0,0.00019508,2]
[376025192,1753827043433,-500.0,0.00019508,2]
[376025194,1753827043442,-500.0,0.00019513,2]
[376025196,1753827043452,-500.0,0.00019513,2]
[376025198,1753827043461,-502.55260872,0.00019513,2]
[376025201,1753827043471,-515.48631446,0.00019513,2]
[376025203,1753827043480,-500.0,0.00019533,2]
[376025204,1753827043490,-2347.87260389,0.00019561,2]
[376025206,1753827043499,-500.0,0.00019585,2]
[376025208,1753827043509,-500.0,0.00019585,2]
[376025211,1753827043519,-2434.74389024,0.00019616,2]
[376025212,1753827043529,-2524.82941417,0.00019671,2]
[376025214,1753827043539,-460.0,0.00019719,2]
[376025216,1753827043548,-3530.26,0.00019719,2]
[376025218,1753827043558,-460.0,0.00019719,2]
[376025220,1753827043567,-1759.16,0.00019719,2]
[376025222,1753827043578,-460.0,0.00019719,2]
[376025224,1753827043588,-460.0,0.00019719,2]
[376025226,1753827043597,-1070.1,0.00019719,2]
[376025228,1753827043607,-1469.93,0.00019719,2]
[376025230,1753827043617,-460.0,0.00019719,2]
[376025232,1753827043627,-460.0,0.00019719,2]
[376025235,1753827043636,-1552.34,0.00019719,2]
[376025237,1753827043646,-460.0,0.00019719,2]
[376025240,1753827043656,-611.59,0.00019719,2]
[376025243,1753827043666,-2329.0,0.00019719,2]
[376025246,1753827043676,-596.36,0.0001972,2]
[376025248,1753827043686,-460.0,0.0001972,2]
[376025263,1753827043804,-460.0,0.0001972,2]
[376025265,1753827043831,-541.16,0.0001972,2]
[376025267,1753827043841,-460.0,0.0001972,2]
[376025269,1753827043851,-621.75,0.0001972,2]
[376025271,1753827043860,-779.68,0.0001972,2]
[376025273,1753827043870,-460.0,0.0001972,2]
[376025275,1753827043879,-306.7123273,0.0001972,2]
[376025277,1753827043889,-460.0,0.0001972,2]
[376025279,1753827043898,-497.69,0.0001972,2]
[376025281,1753827043908,-755.67,0.0001972,2]
[376025283,1753827043918,-460.0,0.0001972,2]
[376025285,1753827043928,-460.0,0.0001972,2]
[376025287,1753827043938,-550.2,0.0001972,2]
[376025289,1753827043947,-460.0,0.0001972,2]
[376025291,1753827043957,-460.0,0.0001972,2]
[376025293,1753827043966,-460.0,0.0001972,2]
[376025295,1753827043976,-572.88,0.0001972,2]
[376025297,1753827043986,-543.73,0.0001972,2]
[376025299,1753827043995,-460.0,0.0001972,2]
[376025301,1753827044005,-460.0,0.0001972,2]
[376025303,1753827044014,-460.0,0.0001972,2]
[376025305,1753827044023,-200.0,0.00019723,2]
[376025307,1753827044033,-180.96367749,0.00019726,2]
[376025309,1753827044043,-460.0,0.00019732,2]
[376025311,1753827044054,-588.15,0.00019732,2]
[376025313,1753827044064,-1366.57,0.00019732,2]
[376025315,1753827044074,-4198.76,0.00019732,2]
[376025317,1753827044083,-1098.41,0.00019732,2]
[376025319,1753827044092,-1052.65,0.00019732,2]
[376025321,1753827044102,-460.0,0.00019732,2]
[376025323,1753827044111,-460.0,0.00019732,2]
[376025325,1753827044124,-1567.84,0.00019732,2]
[376025327,1753827044134,-151.0,0.00019733,2]
[376025329,1753827044144,-1275.89,0.00019734,2]
[376025331,1753827044153,-460.0,0.00019734,2]
[376025333,1753827044164,-774.72,0.00019734,2]
[376025335,1753827044173,-1025.02,0.00019734,2]
[376025337,1753827044182,-151.0,0.000198,2]
[376025339,1753827044192,-533.9,0.00019851,3]
[376025341,1753827044201,-151.0,0.00019897,2]
[376025343,1753827044210,-298.54865579,0.00019993,2]
[376025345,1753827044220,-3530.26,0.00019993,2]
[376025347,1753827044229,-460.0,0.00019993,2]
[376025349,1753827044239,-1759.16,0.00019993,2]
[376025351,1753827044248,-460.0,0.00019993,2]
[376025353,1753827044257,-460.0,0.00019993,2]